{"text_format":"3","workbook":"xlsx","n_sheets":3,"sheets":["Verhalen","Inzendingen","Publicaties"],"not_rendered":{"images":1,"defined_names":2},"read":"whole","date_system":"1900"}

{"sheet":"Verhalen","index":0,"n_rows":10,"n_cols":7,"rows_kept":10}
[{"$nulls":6}," "]
[]
[]
[null,"Titel","Status","Aantal woorden","Soort verhaal","Overzicht"]
[null,"Call by Nightfall","Voltooid",{"v":5710,"d":"5,710"},"Kort verhaal","Vrij spannende fictie over een geheime inspecteur."]
[null,"The Blue Wallpaper","Voltooid",{"v":4525,"d":"4,525"},"Kort verhaal","Inspirerend verhaal over huisontwerp."]
[null,"Love After Love","Voltooid",438,"Blogpost","Een verhaal over een tweede kans in de liefde."]
[null,"The Most Dangerous Suit","In voortgang",550,"Marketing","Marketingmateriaal voor een ontwerper van overhemden."]
[null,"The Legendary Mission","Voltooid",520,"Blogpost","Kort verhaal over een ruimtemissie."]
[null,"Legacy Quarter","Voltooid",290,"Blogpost","Sportartikel over een finalewedstrijd."]

{"sheet":"Inzendingen","index":1,"n_rows":11,"n_cols":8,"rows_kept":11}
[{"$nulls":7}," "]
[]
[]
[null,"Datum \nVerzonden","Titel van verhaal","Publicatienaam","Status","Datum \nGepubliceerd","Betaling \nOntvangen"]
[null,{"$f":"TODAY()-21","v":"2022-07-25"},"Call by Nightfall","Young at Heart Magazine","Geweigerd"]
[null,{"$f":"TODAY()-9","v":"2022-08-06"},"The Blue Wallpaper","Young at Heart Magazine","Geaccepteerd",{"$f":"TODAY()-4","v":"2022-08-11"},{"v":300,"d":"€ 300.00 "}]
[null,{"$f":"TODAY()-9","v":"2022-08-06"},"The Blue Wallpaper","Digital Grounds","Geaccepteerd",{"$f":"TODAY()-2","v":"2022-08-13"},{"v":350,"d":"€ 350.00 "}]
[null,{"$f":"TODAY()-7","v":"2022-08-08"},"Love After Love","Get This!","Verzonden"]
[null,{"$f":"TODAY()-6","v":"2022-08-09"},"The Legendary Mission","Digital Grounds","Geaccepteerd",{"$f":"TODAY()-4","v":"2022-08-11"},{"v":150,"d":"€ 150.00 "}]
[null,{"$f":"TODAY()-6","v":"2022-08-09"},"Legacy Quarter","Get This!","Geaccepteerd",{"$f":"TODAY()-3","v":"2022-08-12"},{"v":100,"d":"€ 100.00 "}]
[null,{"$f":"TODAY()-6","v":"2022-08-09"},"Legacy Quarter","Digital Grounds","Verzonden"]

{"sheet":"Publicaties","index":2,"n_rows":7,"n_cols":8,"rows_kept":7}
[{"$nulls":7}," "]
[]
[]
[null,"Naam","Type","Deadlines","Totaal \nInzendingen","Totaal\nGeaccepteerd","Totaal \nWinsten"]
[null,"Digital Grounds","Overig","Twee weken na aanvraag",{"$f":"COUNTIF(Table_Submissions[Publicatienaam],Table_Publications[[#This Row],[Naam]])","v":3},{"$f":"COUNTIFS(Table_Submissions[Publicatienaam],Table_Publications[[#This Row],[Naam]],Table_Submissions[Status],\"Geaccepteerd\")","v":2},{"$f":"SUMIF(Table_Submissions[Publicatienaam],Table_Publications[[#This Row],[Naam]],Table_Submissions[Betaling \nOntvangen])","v":{"v":500,"d":"€ 500.00 "}}]
[null,"Young at Heart Magazine","SFWA","Elke 3de van de maand",{"$f":"COUNTIF(Table_Submissions[Publicatienaam],Table_Publications[[#This Row],[Naam]])","v":2},{"$f":"COUNTIFS(Table_Submissions[Publicatienaam],Table_Publications[[#This Row],[Naam]],Table_Submissions[Status],\"Geaccepteerd\")","v":1},{"$f":"SUMIF(Table_Submissions[Publicatienaam],Table_Publications[[#This Row],[Naam]],Table_Submissions[Betaling \nOntvangen])","v":{"v":300,"d":"€ 300.00 "}}]
[null,"Get This!","SFWA","Elke maandag",{"$f":"COUNTIF(Table_Submissions[Publicatienaam],Table_Publications[[#This Row],[Naam]])","v":2},{"$f":"COUNTIFS(Table_Submissions[Publicatienaam],Table_Publications[[#This Row],[Naam]],Table_Submissions[Status],\"Geaccepteerd\")","v":1},{"$f":"SUMIF(Table_Submissions[Publicatienaam],Table_Publications[[#This Row],[Naam]],Table_Submissions[Betaling \nOntvangen])","v":{"v":100,"d":"€ 100.00 "}}]